Workbook

Sheet Sheet1
C4: 主键 | D4: 索引0 | E4: 索引1 | G4: 索引3 | H4: 索引3
C5: 3列 | D5: 主键倒序 | E5: 值列1 | G5: 值列2 | H5: 值列3
C8: 强一致性 | D8: ES | E8: 20000 | F8: 每秒行数 | G8: 200000 | H8: 每秒行数
C9: × | D9: √ | E9: 7844 | F9: =$E$8/E9*1000 -> 2549.719531 | G9: 67189 | H9: =$G$8/G9*1000 -> 2976.67773
B10: 缓存Redis+锁Redis | C10: √ | D10: √ | E10: 21737 | F10: =$E$8/E10*1000 -> 920.0901688 | G10: 190965 | H10: 1047.312335
B11: 缓存HBase+锁Redis | C11: √ | D11: √ | E11: 25404 | F11: =$E$8/E11*1000 -> 787.2775941 | G11: 248241 | H11: 805.6686849
B12: 缓存HBase+锁Zookeeper | C12: √ | D12: √ | E12: 79061 | F12: =$E$8/E12*1000 -> 252.9692263 | G12: 723573 | H12: 276.4061124

Sheet Sheet2
C4: 主键 | D4: 索引0 | E4: 索引1 | G4: 索引3 | H4: 索引3
C5: 3列 | D5: 主键倒序 | E5: 值列1 | G5: 值列2 | H5: 值列3
C8: 强一致性 | D8: ES | E8: 20000 | F8: 每秒行数 | G8: 200000 | H8: 每秒行数
C9: × | D9: × | E9: 3731 | F9: =$E$8/E9*1000 -> 5360.493165 | G9: 42384 | H9: =$G$8/G9*1000 -> 4718.761797
C10: × | D10: √ | E10: 7844 | F10: =$E$8/E10*1000 -> 2549.719531 | G10: 67189 | H10: =$G$8/G10*1000 -> 2976.67773
B11: 缓存Redis+锁Redis | C11: √ | D11: × | E11: 19514 | F11: =$E$8/E11*1000 -> 1024.905196 | G11: 176512 | H11: 1133.06744
C12: √ | D12: √ | E12: 21737 | F12: =$E$8/E12*1000 -> 920.0901688 | G12: 190965 | H12: 1047.312335
B13: 缓存HBase+锁Redis | C13: √ | D13: × | E13: 22398 | F13: =$E$8/E13*1000 -> 892.9368694 | G13: 225059 | H13: 888.6558636
C14: √ | D14: √ | E14: 25404 | F14: =$E$8/E14*1000 -> 787.2775941 | G14: 248241 | H14: 805.6686849
B15: 缓存HBase+锁Zookeeper | C15: √ | D15: × | E15: 71974 | F15: =$E$8/E15*1000 -> 277.8781227 | G15: 797698 | H15: 250.721451
C16: √ | D16: √ | E16: 79061 | F16: =$E$8/E16*1000 -> 252.9692263 | G16: 723573 | H16: 276.4061124
